[Event "81st ARM-ch 2021"]
[Site "Yerevan"]
[Date "2021.02.20"]
[Round "5.5"]
[White "Ter-Sahakyan, Samvel"]
[Black "Petrosian, Tigran L."]
[Result "1/2-1/2"]
[ECO "B12"]
[WhiteElo "2640"]
[BlackElo "2601"]
[Annotator "ChessBase"]
[PlyCount "106"]
[EventDate "2021.02.16"]
[EventType "tourn"]
[EventCountry "ARM"]
[SourceTitle "playchess.com"]
[Source "ChessBase"]
[SourceQuality "1"]
[TimeControl "40/5400+30:1800+30"]

1. e4 {[%emt 0:00:00]} c6 {[%emt 0:07:05]} 2. d4 {[%emt 0:00:59]} Na6 {[%emt 0:00:31]} 3. Nc3 {[%emt 0:05:03]} Nc7 {[%emt 0:00:17]} 4. Be3 {[%emt 0:02:14]} d5 {[%emt 0:01:37]} 5. e5 {[%emt 0:00:16]} Bf5 {[%emt 0:00:22]} 6. Nce2 {[%emt 0:04:22]} e6 {[%emt 0:04:48]} 7. Ng3 {[%emt 0:00:37]} Bg6 {[%emt 0:00:57]} 8. N1e2 {[%emt 0:09:09]} h6 {[%emt 0:07:11]} 9. Nf4 {[%emt 0:00:53]} Bh7 {[%emt 0:00:05]} 10. h4 {[%emt 0:10:54]} Qd7 {[%emt 0:04:05]} 11. Bd3 {[%emt 0:01:08]} Bxd3 {[%emt 0:00:24]} 12. Nxd3 {[%emt 0:00:31]} O-O-O {[%emt 0:02:59]} 13. c3 {[%emt 0:02:49]} Kb8 {[%emt 0:09:34]} 14. a4 {[%emt 0:02:07]} Ne7 {[%emt 0:05:18]} 15. b4 {[%emt 0:06:42]} Nf5 {[%emt 0:02:17]} 16. h5 {[%emt 0:06:40]} Nxe3 {[%emt 0:15:05]} 17. fxe3 {[%emt 0:00:05]} Be7 {[%emt 0:00:35]} 18. Ne2 {[%emt 0:01:44]} b6 {[%emt 0:06:19]} 19. O-O {[%emt 0:03:18]} Rdf8 {[%emt 0:08:35]} 20. Nef4 {[%emt 0:01:37]} Rhg8 {[%emt 0:00:21]} 21. Qg4 {[%emt 0:04:25]} Qc8 {[%emt 0:05:31]} 22. Rfb1 {[%emt 0:04:30]} Qe8 {[%emt 0:07:19]} 23. Qe2 {[%emt 0:04:32]} a6 {[%emt 0:01:54]} 24. a5 {[%emt 0:05:55]} b5 {[%emt 0:00:11]} 25. Rf1 {[%emt 0:00:07]} g5 {[%emt 0:01:00]} 26. hxg6 {[%emt 0:09:49]} fxg6 {[%emt 0:00:05]} 27. g3 {[%emt 0:01:42]} h5 {[%emt 0:01:58]} 28. Rf2 {[%emt 0:02:32]} Rf5 {[%emt 0:00:41]} 29. Raf1 {[%emt 0:00:21]} Rgf8 {[%emt 0:00:14]} 30. Nc5 {[%emt 0:02:43]} Bxc5 {[%emt 0:00:30]} 31. bxc5 {[%emt 0:00:03]} Kb7 {[%emt 0:01:43]} 32. Nh3 {[%emt 0:01:48]} Qd8 {[%emt 0:02:05]} 33. Nf4 {[%emt 0:02:09]} Qg5 {[%emt 0:01:57]} 34. Kg2 {[%emt 0:00:36]} Qh6 {[%emt 0:00:14]} 35. Rh1 {[%emt 0:02:13]} Qh7 {[%emt 0:01:11]} 36. g4 {[%emt 0:01:15]} R5f7 {[%emt 0:00:12]} 37. Kg1 {[%emt 0:01:04]} g5 {[%emt 0:00:32]} 38. Nd3 {[%emt 0:00:46]} h4 {[%emt 0:00:40]} 39. Rxf7 Rxf7 {[%emt 0:00:36]} 40. Nf2 {[%emt 0:00:00]} b4 {[%emt 0:00:00]} 41. cxb4 {[%emt 0:05:34]} Nb5 {[%emt 0:02:06]} 42. Qd2 {[%emt 0:05:21]} Rf8 {[%emt 0:14:13]} 43. Rh3 {[%emt 0:13:18]} Qf7 {[%emt 0:05:45]} 44. Rh2 {[%emt 0:00:17]} Qg6 {[%emt 0:06:50]} 45. Rh3 {[%emt 0:04:03]} Ka7 {[%emt 0:00:40]} 46. Rh2 {[%emt 0:02:24]} Qb1+ {[%emt 0:02:59]} 47. Kg2 {[%emt 0:00:14]} Qh7 {[%emt 0:00:10]} 48. Kg1 {[%emt 0:00:26]} Kb8 {[%emt 0:01:55]} 49. Rh3 {[%emt 0:00:18]} Kc8 {[%emt 0:00:19]} 50. Qd3 {[%emt 0:01:22]} Qxd3 {[%emt 0:02:18]} 51. Nxd3 {[%emt 0:00:05]} Nc3 {[%emt 0:00:07]} 52. Kg2 {[%emt 0:01:33]} Ne4 {[%emt 0:00:14]} 53. Rf3 {[%emt 0:01:47]} Rxf3 {[%emt 0:00:06]} 1/2-1/2